[Event "Titled Tuesday Blitz April 18 Early 2023"]
[White "Harshad S"]
[Black "Maung, Maung Kyaw Zaw Hein"]
[WhiteFideId "46616551"]
[BlackFideId "13001698"]
[WhiteElo "2163"]
[BlackElo "2019"]
[Result "1-0"]
[Round "05"]
[TimeControl "180+2"]
[Date "2023.04.18"]
[WhiteClock "0:00:20"]
[BlackClock "0:00:06"]

1. e4 {[%clk 0:02:59]}  c6 {[%clk 0:02:59]} 2. Nc3 {[%clk 0:02:57]}  d5 {[%clk 0:03:00]} 3. Nf3 {[%clk 0:02:58]}  Bg4 {[%clk 0:02:58]} 4. h3 {[%clk 0:02:58]}  Bxf3 {[%clk 0:02:58]} 5. Qxf3 {[%clk 0:02:59]}  d4 {[%clk 0:02:58]} 6. Ne2 {[%clk 0:02:58]}  e5 {[%clk 0:02:57]} 7. d3 {[%clk 0:02:58]}  Nd7 {[%clk 0:02:57]} 8. Qg3 {[%clk 0:02:57]}  g6 {[%clk 0:02:53]} 9. f4 {[%clk 0:02:54]}  Be7 {[%clk 0:02:48]} 10. Qf3 {[%clk 0:02:49]}  Bf6 {[%clk 0:02:33]} 11. g3 {[%clk 0:02:46]}  Ne7 {[%clk 0:02:32]} 12. Bg2 {[%clk 0:02:46]}  O-O {[%clk 0:02:31]} 13. O-O {[%clk 0:02:43]}  c5 {[%clk 0:02:30]} 14. fxe5 {[%clk 0:02:36]}  Bxe5 {[%clk 0:02:28]} 15. Bh6 {[%clk 0:02:35]}  Bg7 {[%clk 0:02:28]} 16. Bxg7 {[%clk 0:02:34]}  Kxg7 {[%clk 0:02:29]} 17. Nf4 {[%clk 0:02:35]}  Ne5 {[%clk 0:02:26]} 18. Qe2 {[%clk 0:02:34]}  Qd7 {[%clk 0:02:18]} 19. h4 {[%clk 0:02:31]}  h5 {[%clk 0:02:15]} 20. Bh3 {[%clk 0:02:29]}  Ng4 {[%clk 0:02:09]} 21. Qf3 {[%clk 0:02:23]}  Nc6 {[%clk 0:02:04]} 22. Nd5 {[%clk 0:02:01]}  Nce5 {[%clk 0:02:02]} 23. Qf4 {[%clk 0:02:00]}  f6 {[%clk 0:01:44]} 24. a4 {[%clk 0:01:54]}  b6 {[%clk 0:01:35]} 25. b3 {[%clk 0:01:52]}  Qc6 {[%clk 0:01:18]} 26. Ne7 {[%clk 0:01:48]}  Qe6 {[%clk 0:01:14]} 27. Nd5 {[%clk 0:01:45]}  Qc6 {[%clk 0:01:11]} 28. Qd2 {[%clk 0:01:42]}  Rf7 {[%clk 0:01:07]} 29. Rf4 {[%clk 0:01:42]}  a6 {[%clk 0:01:02]} 30. Raf1 {[%clk 0:01:36]}  b5 {[%clk 0:00:52]} 31. a5 {[%clk 0:01:33]}  Raf8 {[%clk 0:00:47]} 32. Rb1 {[%clk 0:01:26]}  Rc8 {[%clk 0:00:42]} 33. Kh1 {[%clk 0:01:23]}  Rcf8 {[%clk 0:00:30]} 34. c3 {[%clk 0:01:16]}  dxc3 {[%clk 0:00:25]} 35. Qxc3 {[%clk 0:01:17]}  Qd6 {[%clk 0:00:25]} 36. Rc1 {[%clk 0:01:15]}  Rc8 {[%clk 0:00:13]} 37. d4 {[%clk 0:01:13]}  Nd7 {[%clk 0:00:07]} 38. Qf3 {[%clk 0:01:11]}  c4 {[%clk 0:00:06]} 39. e5 {[%clk 0:01:11]}  Qe6 {[%clk 0:00:05]} 40. bxc4 {[%clk 0:00:51]}  bxc4 {[%clk 0:00:03]} 41. Rf1 {[%clk 0:00:41]}  f5 {[%clk 0:00:03]} 42. Nc3 {[%clk 0:00:41]}  Re7 {[%clk 0:00:01]} 43. Bxg4 {[%clk 0:00:41]}  hxg4 {[%clk 0:00:01]} 44. Qb7 {[%clk 0:00:40]}  Rce8 {[%clk 0:00:01]} 45. Qd5 {[%clk 0:00:34]}  Qxd5+ {[%clk 0:00:01]} 46. Nxd5 {[%clk 0:00:35]}  Re6 {[%clk 0:00:02]} 47. Nc7 {[%clk 0:00:35]}  Nf8 {[%clk 0:00:02]} 48. Nxe8+ {[%clk 0:00:30]}  Rxe8 {[%clk 0:00:02]} 49. R4f2 {[%clk 0:00:29]}  Ne6 {[%clk 0:00:03]} 50. d5 {[%clk 0:00:29]}  Nc5 {[%clk 0:00:03]} 51. e6 {[%clk 0:00:28]}  Ne4 {[%clk 0:00:03]} 52. Rg2 {[%clk 0:00:29]}  c3 {[%clk 0:00:03]} 53. Rd1 {[%clk 0:00:29]}  Kf6 {[%clk 0:00:04]} 54. Kh2 {[%clk 0:00:29]}  Ke5 {[%clk 0:00:04]} 55. Rc2 {[%clk 0:00:28]}  Rd8 {[%clk 0:00:04]} 56. e7 {[%clk 0:00:26]}  Re8 {[%clk 0:00:05]} 57. d6 {[%clk 0:00:26]}  Nxd6 {[%clk 0:00:05]} 58. Rxc3 {[%clk 0:00:26]}  Rxe7 {[%clk 0:00:05]} 59. Rc5+ {[%clk 0:00:26]}  Ke6 {[%clk 0:00:05]} 60. Rc6 {[%clk 0:00:27]}  Rd7 {[%clk 0:00:05]} 61. Rxa6 {[%clk 0:00:27]}  Ke5 {[%clk 0:00:06]} 62. Rb6 {[%clk 0:00:22]}  Rd8 {[%clk 0:00:06]} 63. a6 {[%clk 0:00:22]}  Rc8 {[%clk 0:00:05]} 64. Rbxd6 {[%clk 0:00:20]}  Rc2+ {[%clk 0:00:06]} 65. R1d2 {[%clk 0:00:20]} 1-0


[Site "https://www.chess.com"]

[Event "Titled Tuesday Blitz April 18 Early 2023"]
[White "Schuh, Karsten"]
[Black "Horobetz, Graham"]
[WhiteFideId "4637950"]
[BlackFideId "2047322"]
[WhiteElo "2138"]
[BlackElo "2620"]
[Result "0-1"]
[Round "05"]
[TimeControl "180+2"]
[Date "2023.04.18"]
[WhiteClock "0:00:06"]
[BlackClock "0:00:11"]

1. Nf3 {[%clk 0:03:00]}  c5 {[%clk 0:02:59]} 2. c4 {[%clk 0:03:00]}  g6 {[%clk 0:02:57]} 3. g3 {[%clk 0:03:00]}  Bg7 {[%clk 0:02:57]} 4. Bg2 {[%clk 0:03:00]}  Nc6 {[%clk 0:02:58]} 5. O-O {[%clk 0:03:00]}  e5 {[%clk 0:02:59]} 6. Nc3 {[%clk 0:02:59]}  Nge7 {[%clk 0:02:59]} 7. Ne1 {[%clk 0:02:59]}  d6 {[%clk 0:02:59]} 8. Nc2 {[%clk 0:02:59]}  Be6 {[%clk 0:03:00]} 9. Ne3 {[%clk 0:03:00]}  O-O {[%clk 0:03:00]} 10. d3 {[%clk 0:02:58]}  Rb8 {[%clk 0:03:00]} 11. a3 {[%clk 0:02:43]}  a6 {[%clk 0:03:00]} 12. Rb1 {[%clk 0:02:42]}  b5 {[%clk 0:02:59]} 13. b4 {[%clk 0:02:41]}  bxc4 {[%clk 0:02:54]} 14. dxc4 {[%clk 0:02:38]}  cxb4 {[%clk 0:02:47]} 15. axb4 {[%clk 0:02:38]}  Nxb4 {[%clk 0:02:47]} 16. Qa4 {[%clk 0:02:30]}  a5 {[%clk 0:02:37]} 17. Ba3 {[%clk 0:02:22]}  Nf5 {[%clk 0:01:58]} 18. Bxb4 {[%clk 0:01:53]}  axb4 {[%clk 0:01:53]} 19. Rxb4 {[%clk 0:01:53]}  Nxe3 {[%clk 0:01:46]} 20. fxe3 {[%clk 0:01:50]}  Rxb4 {[%clk 0:01:45]} 21. Qxb4 {[%clk 0:01:49]}  Qg5 {[%clk 0:01:37]} 22. Nd1 {[%clk 0:01:21]}  Rc8 {[%clk 0:01:24]} 23. Qxd6 {[%clk 0:01:16]}  Bxc4 {[%clk 0:01:23]} 24. Bd5 {[%clk 0:01:06]}  Bxd5 {[%clk 0:00:59]} 25. Qxd5 {[%clk 0:01:06]}  Qe7 {[%clk 0:00:52]} 26. Nf2 {[%clk 0:00:56]}  Rd8 {[%clk 0:00:50]} 27. Qb3 {[%clk 0:00:55]}  Kh8 {[%clk 0:00:41]} 28. Kg2 {[%clk 0:00:40]}  f5 {[%clk 0:00:39]} 29. e4 {[%clk 0:00:39]}  f4 {[%clk 0:00:31]} 30. Nd3 {[%clk 0:00:36]}  g5 {[%clk 0:00:23]} 31. gxf4 {[%clk 0:00:25]}  exf4 {[%clk 0:00:21]} 32. e5 {[%clk 0:00:20]}  Bxe5 {[%clk 0:00:17]} 33. Nxe5 {[%clk 0:00:16]}  Qxe5 {[%clk 0:00:18]} 34. Qc4 {[%clk 0:00:15]}  Rd4 {[%clk 0:00:14]} 35. Qc8+ {[%clk 0:00:14]}  Kg7 {[%clk 0:00:15]} 36. Qb7+ {[%clk 0:00:14]}  Kg6 {[%clk 0:00:14]} 37. Qc6+ {[%clk 0:00:12]}  Rd6 {[%clk 0:00:14]} 38. Qc4 {[%clk 0:00:12]}  Re6 {[%clk 0:00:12]} 39. Rf2 {[%clk 0:00:11]}  h5 {[%clk 0:00:12]} 40. h3 {[%clk 0:00:11]}  Qe3 {[%clk 0:00:11]} 41. Qc8 {[%clk 0:00:07]}  Qg3+ {[%clk 0:00:10]} 42. Kf1 {[%clk 0:00:07]}  Qxh3+ {[%clk 0:00:10]} 43. Ke1 {[%clk 0:00:07]}  Rxe2+ {[%clk 0:00:11]} 44. Kxe2 {[%clk 0:00:07]}  Qxc8 {[%clk 0:00:11]} 45. Kf1 {[%clk 0:00:06]}  Qh3+ {[%clk 0:00:11]} 46. Ke2 {[%clk 0:00:06]}  Qe3+ {[%clk 0:00:12]} 47. Kf1 {[%clk 0:00:06]}  g4 {[%clk 0:00:12]} 48. Re2 {[%clk 0:00:06]}  Qf3+ {[%clk 0:00:11]} 49. Rf2 {[%clk 0:00:06]}  Qd1+ {[%clk 0:00:11]} 50. Kg2 {[%clk 0:00:06]}  f3+ {[%clk 0:00:11]} 0-1


[Site "https://www.chess.com"]

[Event "Titled Tuesday Blitz April 18 Early 2023"]
[White "Andersson, Bjorn 1971"]
[Black "Lamaze, Simon"]
[WhiteFideId "1702114"]
[BlackFideId "36069264"]
[WhiteElo "2176"]
[BlackElo "2272"]
[Result "1/2-1/2"]
[Round "05"]
[TimeControl "180+2"]
[Date "2023.04.18"]
[WhiteClock "0:00:10"]
[BlackClock "0:00:17"]

1. e4 {[%clk 0:03:00]}  c5 {[%clk 0:02:49]} 2. Nf3 {[%clk 0:02:59]}  e6 {[%clk 0:02:49]} 3. d4 {[%clk 0:02:59]}  cxd4 {[%clk 0:02:50]} 4. Nxd4 {[%clk 0:03:00]}  Nc6 {[%clk 0:02:51]} 5. Nc3 {[%clk 0:02:59]}  Qc7 {[%clk 0:02:51]} 6. Be2 {[%clk 0:02:57]}  a6 {[%clk 0:02:49]} 7. O-O {[%clk 0:02:56]}  Nf6 {[%clk 0:02:43]} 8. Nxc6 {[%clk 0:02:55]}  bxc6 {[%clk 0:02:40]} 9. Bf3 {[%clk 0:02:51]}  d5 {[%clk 0:02:39]} 10. Re1 {[%clk 0:02:49]}  Bd6 {[%clk 0:02:32]} 11. exd5 {[%clk 0:02:46]}  cxd5 {[%clk 0:02:29]} 12. Bxd5 {[%clk 0:02:22]}  Bxh2+ {[%clk 0:02:16]} 13. Kh1 {[%clk 0:02:15]}  Rb8 {[%clk 0:02:13]} 14. Bb3 {[%clk 0:02:12]}  O-O {[%clk 0:02:07]} 15. Bg5 {[%clk 0:01:55]}  Nd7 {[%clk 0:01:16]} 16. Qh5 {[%clk 0:01:29]}  Bf4 {[%clk 0:01:12]} 17. Be7 {[%clk 0:01:20]}  g6 {[%clk 0:01:06]} 18. Qf3 {[%clk 0:01:10]}  Re8 {[%clk 0:00:53]} 19. Ba3 {[%clk 0:01:10]}  Bb7 {[%clk 0:00:43]} 20. Qg4 {[%clk 0:01:04]}  Nf6 {[%clk 0:00:41]} 21. Qh3 {[%clk 0:01:03]}  Kg7 {[%clk 0:00:36]} 22. Rad1 {[%clk 0:00:58]}  Rbd8 {[%clk 0:00:21]} 23. Kg1 {[%clk 0:00:54]}  h5 {[%clk 0:00:21]} 24. Ne2 {[%clk 0:00:27]}  Bd6 {[%clk 0:00:19]} 25. Bxd6 {[%clk 0:00:23]}  Rxd6 {[%clk 0:00:20]} 26. Rxd6 {[%clk 0:00:21]}  Qxd6 {[%clk 0:00:20]} 27. Qc3 {[%clk 0:00:20]}  e5 {[%clk 0:00:20]} 28. Ng3 {[%clk 0:00:19]}  h4 {[%clk 0:00:20]} 29. Nf1 {[%clk 0:00:18]}  Nd5 {[%clk 0:00:16]} 30. Qd2 {[%clk 0:00:17]}  Qc6 {[%clk 0:00:14]} 31. Bxd5 {[%clk 0:00:17]}  Qxd5 {[%clk 0:00:15]} 32. Qxd5 {[%clk 0:00:17]}  Bxd5 {[%clk 0:00:16]} 33. b3 {[%clk 0:00:17]}  f6 {[%clk 0:00:16]} 34. Ne3 {[%clk 0:00:18]}  Be6 {[%clk 0:00:16]} 35. Rd1 {[%clk 0:00:18]}  Kf7 {[%clk 0:00:16]} 36. c4 {[%clk 0:00:18]}  f5 {[%clk 0:00:16]} 37. Rd6 {[%clk 0:00:18]}  f4 {[%clk 0:00:16]} 38. Nd5 {[%clk 0:00:17]}  g5 {[%clk 0:00:14]} 39. Rxa6 {[%clk 0:00:17]}  Bxd5 {[%clk 0:00:15]} 40. cxd5 {[%clk 0:00:17]}  Rd8 {[%clk 0:00:16]} 41. d6 {[%clk 0:00:17]}  Ke6 {[%clk 0:00:16]} 42. f3 {[%clk 0:00:17]}  Rc8 {[%clk 0:00:16]} 43. b4 {[%clk 0:00:16]}  Rc1+ {[%clk 0:00:16]} 44. Kf2 {[%clk 0:00:16]}  Rc2+ {[%clk 0:00:17]} 45. Kf1 {[%clk 0:00:17]}  e4 {[%clk 0:00:16]} 46. fxe4 {[%clk 0:00:16]}  g4 {[%clk 0:00:16]} 47. b5 {[%clk 0:00:16]}  h3 {[%clk 0:00:16]} 48. gxh3 {[%clk 0:00:14]}  g3 {[%clk 0:00:17]} 49. d7+ {[%clk 0:00:13]}  Kxd7 {[%clk 0:00:17]} 50. Rg6 {[%clk 0:00:13]}  Rf2+ {[%clk 0:00:16]} 51. Ke1 {[%clk 0:00:12]}  Ke7 {[%clk 0:00:16]} 52. e5 {[%clk 0:00:13]}  Rxa2 {[%clk 0:00:16]} 53. Rg4 {[%clk 0:00:13]}  Rf2 {[%clk 0:00:16]} 54. b6 {[%clk 0:00:12]}  f3 {[%clk 0:00:15]} 55. Rxg3 {[%clk 0:00:12]}  Re2+ {[%clk 0:00:15]} 56. Kf1 {[%clk 0:00:11]}  Rb2 {[%clk 0:00:16]} 57. Rxf3 {[%clk 0:00:12]}  Rxb6 {[%clk 0:00:17]} 58. Re3 {[%clk 0:00:12]}  Rb2 {[%clk 0:00:16]} 59. Re2 {[%clk 0:00:11]}  Rb3 {[%clk 0:00:15]} 60. Kg2 {[%clk 0:00:12]}  Ke6 {[%clk 0:00:16]} 61. Kf2 {[%clk 0:00:10]}  Rxh3 {[%clk 0:00:16]} 62. Re3 {[%clk 0:00:10]}  Rxe3 {[%clk 0:00:16]} 63. Kxe3 {[%clk 0:00:10]}  Kxe5 {[%clk 0:00:17]} 1/2-1/2


[Site "https://www.chess.com"]

[Event "Titled Tuesday Blitz April 18 Early 2023"]
[White "Delorme, Alban"]
[Black "Avramidou, Anastasia"]
[WhiteFideId "623636"]
[BlackFideId "4239873"]
[WhiteElo "2196"]
[BlackElo "2160"]
[Result "1/2-1/2"]
[Round "05"]
[TimeControl "180+2"]
[Date "2023.04.18"]
[WhiteClock "0:00:03"]
[BlackClock "0:00:03"]

1. e4 {[%clk 0:03:00]}  g6 {[%clk 0:02:57]} 2. d4 {[%clk 0:02:59]}  Bg7 {[%clk 0:02:57]} 3. Nc3 {[%clk 0:03:00]}  d6 {[%clk 0:02:57]} 4. Be3 {[%clk 0:03:01]}  Nf6 {[%clk 0:02:57]} 5. f3 {[%clk 0:03:01]}  a6 {[%clk 0:02:58]} 6. Qd2 {[%clk 0:03:01]}  b5 {[%clk 0:02:58]} 7. a3 {[%clk 0:03:01]}  Bb7 {[%clk 0:02:58]} 8. g4 {[%clk 0:03:01]}  Nbd7 {[%clk 0:02:58]} 9. h4 {[%clk 0:02:55]}  h5 {[%clk 0:02:57]} 10. g5 {[%clk 0:02:54]}  Nh7 {[%clk 0:02:57]} 11. Nh3 {[%clk 0:02:50]}  Nb6 {[%clk 0:02:57]} 12. Nf2 {[%clk 0:02:48]}  Nf8 {[%clk 0:02:57]} 13. O-O-O {[%clk 0:02:44]}  Nfd7 {[%clk 0:02:56]} 14. f4 {[%clk 0:02:42]}  e6 {[%clk 0:02:54]} 15. Rg1 {[%clk 0:02:33]}  d5 {[%clk 0:02:26]} 16. f5 {[%clk 0:02:22]}  exf5 {[%clk 0:02:09]} 17. exf5 {[%clk 0:02:20]}  gxf5 {[%clk 0:02:09]} 18. g6 {[%clk 0:02:10]}  f6 {[%clk 0:01:55]} 19. Bh3 {[%clk 0:01:45]}  Qe7 {[%clk 0:01:34]} 20. Bf4 {[%clk 0:01:32]}  O-O-O {[%clk 0:01:32]} 21. Rde1 {[%clk 0:01:30]}  Qf8 {[%clk 0:01:32]} 22. Bxf5 {[%clk 0:01:29]}  Nc4 {[%clk 0:01:24]} 23. Qd3 {[%clk 0:01:24]}  Nd6 {[%clk 0:01:16]} 24. Be6 {[%clk 0:01:13]}  Re8 {[%clk 0:00:49]} 25. Bxd5 {[%clk 0:01:03]}  Rxe1+ {[%clk 0:00:48]} 26. Rxe1 {[%clk 0:01:03]}  Bh6 {[%clk 0:00:49]} 27. Bxb7+ {[%clk 0:01:02]}  Nxb7 {[%clk 0:00:45]} 28. Nd5 {[%clk 0:00:39]}  Bxf4+ {[%clk 0:00:39]} 29. Nxf4 {[%clk 0:00:39]}  Qh6 {[%clk 0:00:39]} 30. Qe3 {[%clk 0:00:28]}  Nd6 {[%clk 0:00:39]} 31. N2d3 {[%clk 0:00:24]}  Re8 {[%clk 0:00:28]} 32. Qd2 {[%clk 0:00:20]}  Rg8 {[%clk 0:00:19]} 33. Qa5 {[%clk 0:00:08]}  Kb7 {[%clk 0:00:09]} 34. Kb1 {[%clk 0:00:08]}  Nc4 {[%clk 0:00:09]} 35. Qc3 {[%clk 0:00:06]}  Ndb6 {[%clk 0:00:09]} 36. Nc5+ {[%clk 0:00:06]}  Ka7 {[%clk 0:00:08]} 37. Qf3 {[%clk 0:00:06]}  Rb8 {[%clk 0:00:05]} 38. Re8 {[%clk 0:00:06]}  Nd6 {[%clk 0:00:03]} 39. Rxb8 {[%clk 0:00:04]}  Kxb8 {[%clk 0:00:04]} 40. Qg3 {[%clk 0:00:04]}  Nf5 {[%clk 0:00:02]} 41. Qf3 {[%clk 0:00:04]}  Nd6 {[%clk 0:00:03]} 42. Qxh5 {[%clk 0:00:03]}  Qxf4 {[%clk 0:00:02]} 43. g7 {[%clk 0:00:03]}  Qf1+ {[%clk 0:00:02]} 44. Ka2 {[%clk 0:00:03]}  Qc4+ {[%clk 0:00:02]} 45. Kb1 {[%clk 0:00:02]}  Qf1+ {[%clk 0:00:02]} 46. Ka2 {[%clk 0:00:02]}  Qc4+ {[%clk 0:00:03]} 47. Kb1 {[%clk 0:00:03]}  Qf1+ {[%clk 0:00:03]} 1/2-1/2


[Site "https://www.chess.com"]

[Event "Titled Tuesday Blitz April 18 Early 2023"]
[White "Svane, Rasmus"]
[Black "Kyaw Lay Htaik"]
[WhiteFideId "4657101"]
[BlackFideId "13002007"]
[WhiteElo "2597"]
[BlackElo "2261"]
[Result "1-0"]
[Round "05"]
[TimeControl "180+2"]
[Date "2023.04.18"]
[WhiteClock "0:01:53"]
[BlackClock "0:00:46"]

1. Nf3 {[%clk 0:02:58]}  d5 {[%clk 0:02:58]} 2. g3 {[%clk 0:02:54]}  Nf6 {[%clk 0:02:57]} 3. Bg2 {[%clk 0:02:53]}  c5 {[%clk 0:02:57]} 4. O-O {[%clk 0:02:53]}  Nc6 {[%clk 0:02:58]} 5. d4 {[%clk 0:02:54]}  cxd4 {[%clk 0:02:53]} 6. Nxd4 {[%clk 0:02:55]}  e5 {[%clk 0:02:52]} 7. Nxc6 {[%clk 0:02:54]}  bxc6 {[%clk 0:02:52]} 8. c4 {[%clk 0:02:55]}  Be6 {[%clk 0:02:51]} 9. Nc3 {[%clk 0:02:51]}  Bc5 {[%clk 0:02:44]} 10. Bg5 {[%clk 0:02:48]}  e4 {[%clk 0:02:26]} 11. Rc1 {[%clk 0:02:37]}  Bb6 {[%clk 0:02:11]} 12. Qa4 {[%clk 0:02:32]}  O-O {[%clk 0:02:04]} 13. Rfd1 {[%clk 0:02:27]}  h6 {[%clk 0:01:58]} 14. Bxf6 {[%clk 0:02:22]}  Qxf6 {[%clk 0:01:58]} 15. e3 {[%clk 0:02:23]}  Bg4 {[%clk 0:01:53]} 16. Rd2 {[%clk 0:02:15]}  Bf3 {[%clk 0:01:44]} 17. cxd5 {[%clk 0:02:14]}  Rad8 {[%clk 0:01:41]} 18. Nxe4 {[%clk 0:02:12]}  Bxe4 {[%clk 0:01:41]} 19. Rxc6 {[%clk 0:01:55]}  Qe5 {[%clk 0:00:50]} 20. Qxe4 {[%clk 0:01:54]}  Qh5 {[%clk 0:00:48]} 21. Bf3 {[%clk 0:01:53]}  Qh3 {[%clk 0:00:46]} 22. Bg4 {[%clk 0:01:53]} 1-0


[Site "https://www.chess.com"]

[Event "Titled Tuesday Blitz April 18 Early 2023"]
[White "Grigoriants, Sergey"]
[Black "Sowul, Bartosz"]
[WhiteFideId "4130804"]
[BlackFideId "1137590"]
[WhiteElo "2502"]
[BlackElo "2188"]
[Result "1-0"]
[Round "05"]
[TimeControl "180+2"]
[Date "2023.04.18"]
[WhiteClock "0:00:06"]
[BlackClock "0:00:10"]

1. d4 {[%clk 0:03:00]}  Nf6 {[%clk 0:02:59]} 2. c4 {[%clk 0:03:00]}  c5 {[%clk 0:02:59]} 3. d5 {[%clk 0:02:59]}  b5 {[%clk 0:02:59]} 4. Qc2 {[%clk 0:02:59]}  b4 {[%clk 0:02:59]} 5. e4 {[%clk 0:02:59]}  d6 {[%clk 0:02:59]} 6. Bd3 {[%clk 0:02:58]}  g6 {[%clk 0:02:59]} 7. f4 {[%clk 0:02:31]}  Bg7 {[%clk 0:02:53]} 8. Nf3 {[%clk 0:02:31]}  O-O {[%clk 0:02:52]} 9. O-O {[%clk 0:02:32]}  Nbd7 {[%clk 0:02:50]} 10. Qe2 {[%clk 0:02:15]}  e6 {[%clk 0:02:43]} 11. dxe6 {[%clk 0:02:10]}  fxe6 {[%clk 0:02:43]} 12. Nbd2 {[%clk 0:01:15]}  Bb7 {[%clk 0:02:38]} 13. Ng5 {[%clk 0:01:12]}  Qe7 {[%clk 0:02:34]} 14. Ndf3 {[%clk 0:01:13]}  Nh5 {[%clk 0:02:20]} 15. g3 {[%clk 0:01:05]}  Rae8 {[%clk 0:02:20]} 16. Be3 {[%clk 0:01:03]}  d5 {[%clk 0:02:11]} 17. e5 {[%clk 0:01:00]}  Nb6 {[%clk 0:01:17]} 18. Nh4 {[%clk 0:00:43]}  Bh6 {[%clk 0:01:10]} 19. Nxh7 {[%clk 0:00:29]}  Nxg3 {[%clk 0:01:02]} 20. hxg3 {[%clk 0:00:27]}  Qxh7 {[%clk 0:00:59]} 21. Nxg6 {[%clk 0:00:20]}  Qg7 {[%clk 0:00:56]} 22. Kf2 {[%clk 0:00:05]}  dxc4 {[%clk 0:00:53]} 23. Bc2 {[%clk 0:00:05]}  Rf7 {[%clk 0:00:51]} 24. Rh1 {[%clk 0:00:04]}  Nd5 {[%clk 0:00:50]} 25. Qh5 {[%clk 0:00:04]}  Nxe3 {[%clk 0:00:46]} 26. Kxe3 {[%clk 0:00:05]}  Bxh1 {[%clk 0:00:46]} 27. Rxh1 {[%clk 0:00:04]}  b3 {[%clk 0:00:42]} 28. axb3 {[%clk 0:00:05]}  cxb3 {[%clk 0:00:42]} 29. Be4 {[%clk 0:00:05]}  c4 {[%clk 0:00:21]} 30. Qxh6 {[%clk 0:00:06]}  c3 {[%clk 0:00:18]} 31. Qh8+ {[%clk 0:00:05]}  Qxh8 {[%clk 0:00:18]} 32. Rxh8+ {[%clk 0:00:06]}  Kg7 {[%clk 0:00:18]} 33. Rxe8 {[%clk 0:00:07]}  c2 {[%clk 0:00:15]} 34. Rc8 {[%clk 0:00:07]}  Rd7 {[%clk 0:00:13]} 35. Nh4 {[%clk 0:00:05]}  Rd8 {[%clk 0:00:10]} 36. Rc7+ {[%clk 0:00:04]}  Kg8 {[%clk 0:00:09]} 37. Bxc2 {[%clk 0:00:04]}  bxc2 {[%clk 0:00:08]} 38. Rxc2 {[%clk 0:00:05]}  Rd1 {[%clk 0:00:08]} 39. Rc6 {[%clk 0:00:05]}  Rg1 {[%clk 0:00:08]} 40. Kf3 {[%clk 0:00:05]}  Rb1 {[%clk 0:00:09]} 41. Rxe6 {[%clk 0:00:05]}  Rxb2 {[%clk 0:00:09]} 42. Ra6 {[%clk 0:00:06]}  Rb3+ {[%clk 0:00:10]} 43. Kg4 {[%clk 0:00:06]}  Rb7 {[%clk 0:00:10]} 44. Nf5 {[%clk 0:00:06]} 1-0


[Site "https://www.chess.com"]

[Event "Titled Tuesday Blitz April 18 Early 2023"]
[White "Ashraf, Artin"]
[Black "Omelja, Artem"]
[WhiteFideId "22514805"]
[BlackFideId "14119846"]
[WhiteElo "2188"]
[BlackElo "2404"]
[Result "1-0"]
[Round "05"]
[TimeControl "180+2"]
[Date "2023.04.18"]
[WhiteClock "0:00:05"]
[BlackClock "0:00:04"]

1. d4 {[%clk 0:03:00]}  d5 {[%clk 0:02:54]} 2. Nc3 {[%clk 0:03:01]}  Nf6 {[%clk 0:02:50]} 3. Bf4 {[%clk 0:03:01]}  a6 {[%clk 0:02:50]} 4. e3 {[%clk 0:02:58]}  Bf5 {[%clk 0:02:46]} 5. Bd3 {[%clk 0:02:52]}  Bxd3 {[%clk 0:02:42]} 6. cxd3 {[%clk 0:02:53]}  e6 {[%clk 0:02:43]} 7. Nf3 {[%clk 0:02:42]}  Nbd7 {[%clk 0:02:33]} 8. O-O {[%clk 0:02:38]}  Be7 {[%clk 0:02:28]} 9. Qb3 {[%clk 0:02:35]}  b6 {[%clk 0:02:20]} 10. e4 {[%clk 0:02:26]}  c6 {[%clk 0:02:02]} 11. e5 {[%clk 0:02:15]}  Nh5 {[%clk 0:02:00]} 12. Bd2 {[%clk 0:02:11]}  g5 {[%clk 0:01:51]} 13. h3 {[%clk 0:01:55]}  Ng7 {[%clk 0:01:48]} 14. Ne2 {[%clk 0:01:49]}  h5 {[%clk 0:01:45]} 15. g4 {[%clk 0:01:48]}  hxg4 {[%clk 0:01:43]} 16. hxg4 {[%clk 0:01:49]}  f5 {[%clk 0:01:19]} 17. exf6 {[%clk 0:01:40]}  Nxf6 {[%clk 0:01:17]} 18. Ne5 {[%clk 0:01:36]}  Nd7 {[%clk 0:00:51]} 19. Kg2 {[%clk 0:01:05]}  Nxe5 {[%clk 0:00:47]} 20. dxe5 {[%clk 0:01:03]}  Rh4 {[%clk 0:00:39]} 21. f3 {[%clk 0:01:01]}  Qc7 {[%clk 0:00:39]} 22. Be1 {[%clk 0:00:55]}  Rh6 {[%clk 0:00:31]} 23. d4 {[%clk 0:00:49]}  O-O-O {[%clk 0:00:29]} 24. Rc1 {[%clk 0:00:47]}  Kb7 {[%clk 0:00:29]} 25. Rc2 {[%clk 0:00:40]}  Ka7 {[%clk 0:00:20]} 26. a4 {[%clk 0:00:37]}  c5 {[%clk 0:00:19]} 27. a5 {[%clk 0:00:17]}  c4 {[%clk 0:00:18]} 28. axb6+ {[%clk 0:00:16]}  Qxb6 {[%clk 0:00:19]} 29. Qa4 {[%clk 0:00:13]}  Qb5 {[%clk 0:00:17]} 30. Qa2 {[%clk 0:00:10]}  Rb8 {[%clk 0:00:15]} 31. Bg3 {[%clk 0:00:08]}  Rhh8 {[%clk 0:00:14]} 32. Ra1 {[%clk 0:00:06]}  Rb6 {[%clk 0:00:12]} 33. Nc3 {[%clk 0:00:05]}  Qb3 {[%clk 0:00:12]} 34. Qb1 {[%clk 0:00:04]}  Rhb8 {[%clk 0:00:07]} 35. Qd1 {[%clk 0:00:04]}  Bb4 {[%clk 0:00:05]} 36. Be1 {[%clk 0:00:04]}  Bxc3 {[%clk 0:00:04]} 37. Bxc3 {[%clk 0:00:03]}  Rf8 {[%clk 0:00:04]} 38. Ra3 {[%clk 0:00:03]}  Qb5 {[%clk 0:00:03]} 39. Kg3 {[%clk 0:00:04]}  Ne8 {[%clk 0:00:02]} 40. Rh2 {[%clk 0:00:04]}  Qd7 {[%clk 0:00:02]} 41. Qd2 {[%clk 0:00:03]}  Qe7 {[%clk 0:00:02]} 42. Rh5 {[%clk 0:00:03]}  Rg8 {[%clk 0:00:02]} 43. Qh2 {[%clk 0:00:03]}  Nc7 {[%clk 0:00:02]} 44. Rh7 {[%clk 0:00:02]}  Rg7 {[%clk 0:00:02]} 45. Rh8 {[%clk 0:00:03]}  Nb5 {[%clk 0:00:02]} 46. Ra1 {[%clk 0:00:02]}  Rb8 {[%clk 0:00:02]} 47. Rh6 {[%clk 0:00:01]}  Nxc3 {[%clk 0:00:02]} 48. bxc3 {[%clk 0:00:01]}  Rb3 {[%clk 0:00:02]} 49. Qd2 {[%clk 0:00:01]}  Rb6 {[%clk 0:00:02]} 50. Rah1 {[%clk 0:00:02]}  Qf7 {[%clk 0:00:02]} 51. Rf6 {[%clk 0:00:03]}  Qe7 {[%clk 0:00:02]} 52. Rhh6 {[%clk 0:00:03]}  Rc6 {[%clk 0:00:02]} 53. Qa2 {[%clk 0:00:04]}  Rf7 {[%clk 0:00:02]} 54. Qa5 {[%clk 0:00:04]}  Rxf6 {[%clk 0:00:02]} 55. exf6 {[%clk 0:00:05]}  Qd6+ {[%clk 0:00:02]} 56. Kg2 {[%clk 0:00:05]}  Rb6 {[%clk 0:00:03]} 57. Rh7+ {[%clk 0:00:05]}  Kb8 {[%clk 0:00:03]} 58. Qa4 {[%clk 0:00:04]}  Rb2+ {[%clk 0:00:03]} 59. Kf1 {[%clk 0:00:05]}  Rb1+ {[%clk 0:00:03]} 60. Ke2 {[%clk 0:00:05]}  Rb2+ {[%clk 0:00:03]} 61. Kd1 {[%clk 0:00:06]}  Rb5 {[%clk 0:00:03]} 62. Qc2 {[%clk 0:00:04]}  Qf4 {[%clk 0:00:03]} 63. Qh2 {[%clk 0:00:04]}  Qxh2 {[%clk 0:00:03]} 64. Rxh2 {[%clk 0:00:05]}  Rb1+ {[%clk 0:00:03]} 65. Kc2 {[%clk 0:00:05]}  Rb2+ {[%clk 0:00:04]} 66. Kxb2 {[%clk 0:00:05]} 1-0


[Site "https://www.chess.com"]